Body,Body Name,Date,TransNo,Amount � (Excl VAT),Supplier name,Description,Expense Area,Expense Type,Expense Code,
http://opendatacommunities.org/id/london-borough-council/sutton,London Borough of Sutton,17/06/2019,1278083,41.66 , ARGOS LTD,TOYS AND EQUIPMENT,Peoples Services Directorate,Education Equipment,F009,
http://opendatacommunities.org/id/london-borough-council/sutton,London Borough of Sutton,24/06/2019,1278083,34.97 , ASDA SUPERSTORE,GROCERY SHOP,Peoples Services Directorate,Provisions - General,F150,
http://opendatacommunities.org/id/london-borough-council/sutton,London Borough of Sutton,02/06/2019,1278083,52.45 , W M MORRISONS.COM,GROCERY SHOP,Peoples Services Directorate,Provisions - General,F150,
http://opendatacommunities.org/id/london-borough-council/sutton,London Borough of Sutton,27/05/2019,1278083,58.12 , W M MORRISONS.COM,GROCERIES,Peoples Services Directorate,Provisions - General,F150,
http://opendatacommunities.org/id/london-borough-council/sutton,London Borough of Sutton,17/06/2019,1278083,46.23 , W M MORRISONS.COM,GROCERY SHOP,Peoples Services Directorate,Refreshments,F155,
http://opendatacommunities.org/id/london-borough-council/sutton,London Borough of Sutton,16/06/2019,1278083,78.58 , W M MORRISONS.COM,GROCERY SHOP,Peoples Services Directorate,Refreshments,F155,
http://opendatacommunities.org/id/london-borough-council/sutton,London Borough of Sutton,14/06/2019,1278083,26.00 , ASDA SUPERSTORE,GROCERY SHOP,Peoples Services Directorate,Refreshments,F155,
http://opendatacommunities.org/id/london-borough-council/sutton,London Borough of Sutton,10/06/2019,1278083,23.02 , ASDA SUPERSTORE,GROCERIES,Peoples Services Directorate,Refreshments,F155,
http://opendatacommunities.org/id/london-borough-council/sutton,London Borough of Sutton,03/06/2019,1278083,104.16 , W M MORRISONS.COM,GROCERY SHOP,Peoples Services Directorate,Refreshments,F155,
http://opendatacommunities.org/id/london-borough-council/sutton,London Borough of Sutton,05/06/2019,1278083,64.70 , PAVILION PUBLISHING AN,EQUIPMENT,Peoples Services Directorate,Education Equipment,F009,
http://opendatacommunities.org/id/london-borough-council/sutton,London Borough of Sutton,05/06/2019,1278083,40.00 , OYSTER AUTO-TOP UP,OYSTER CARD TOP-UP,Peoples Services Directorate,Training - Travel and Subsistence,A521,
http://opendatacommunities.org/id/london-borough-council/sutton,London Borough of Sutton,10/06/2019,1278083,38.28 , EFLORIST.CO.UK,FLOWERS FOR MEMBER OF STAFF - CONGRATULATIONS NEW BABY,Peoples Services Directorate,Personal Requisites,F106,
http://opendatacommunities.org/id/london-borough-council/sutton,London Borough of Sutton,31/05/2019,1278083,6.23 , AMZNMKTPLACE AMAZON.CO,CABLES,Peoples Services Directorate,Other Equipment - Purchase,F015,
http://opendatacommunities.org/id/london-borough-council/sutton,London Borough of Sutton,21/06/2019,1278083,21.08 , AMZNMKTPLACE AMAZON.CO,CAMCORDER BATTERY,Peoples Services Directorate,Purchase of IT Equipment,F380,
http://opendatacommunities.org/id/london-borough-council/sutton,London Borough of Sutton,21/06/2019,1278083,55.83 , WWW.INSTANTPRINT.C,INSTANTPRINT ROLLER BANNERS - AWARDS 2019,Peoples Services Directorate,Advertising/Publicity (non Staff),F240,
http://opendatacommunities.org/id/london-borough-council/sutton,London Borough of Sutton,06/06/2019,1278083,25.00 , TOM BROWN WHOLESALE FL,SPLIT - MARKETING EVENT 06/06/19 (71.5%),Peoples Services Directorate,Advertising/Publicity (non Staff),F240,
http://opendatacommunities.org/id/london-borough-council/sutton,London Borough of Sutton,04/06/2019,1278083,83.50 , WWW.INSTANTPRINT.C,POSTERS & FLYERS,Peoples Services Directorate,Advertising/Publicity (non Staff),F240,
http://opendatacommunities.org/id/london-borough-council/sutton,London Borough of Sutton,31/05/2019,1278083,70.00 , WWW.INSTANTPRINT.C,POSTER PRINTS,Peoples Services Directorate,Advertising/Publicity (non Staff),F240,
http://opendatacommunities.org/id/london-borough-council/sutton,London Borough of Sutton,30/05/2019,1278083,51.93 , MAILCHIMP    MONTHLY,MAILCHIMP ACCOUNT CHARGES,Peoples Services Directorate,Subscriptions - General,F450,
http://opendatacommunities.org/id/london-borough-council/sutton,London Borough of Sutton,09/06/2019,1278083,18.69 , AMAZON.CO.UK M666A3ZY4,GEDEO 300G SILIGUM MOLDING PASTE WHITE,Peoples Services Directorate,Education Equipment,F009,
http://opendatacommunities.org/id/london-borough-council/sutton,London Borough of Sutton,04/06/2019,1278083,(27.99), SPORTSDIRECT.COM,SHUTTLECOCK REFUND,Peoples Services Directorate,Education Equipment,F009,
http://opendatacommunities.org/id/london-borough-council/sutton,London Borough of Sutton,31/05/2019,1278083,480.00 , WWW.INSTANTPRINT.C,55000 FLYERS,Peoples Services Directorate,Advertising/Publicity (non Staff),F240,
http://opendatacommunities.org/id/london-borough-council/sutton,London Borough of Sutton,19/06/2019,1278083,1.74 , ALDI STORES LTD,FOUNDATION IN FLORISTRY 20/6/19,Peoples Services Directorate,Education Equipment,F009,
http://opendatacommunities.org/id/london-borough-council/sutton,London Borough of Sutton,13/06/2019,1278083,21.35 , MELBOURNE NURSERY,FOUNDATION IN FLORISTRY 13/06/19 7.00; C&G L2 FLORISTRY 14.35,Peoples Services Directorate,Education Equipment,F009,
http://opendatacommunities.org/id/london-borough-council/sutton,London Borough of Sutton,06/06/2019,1278083,9.97 , TOM BROWN WHOLESALE FL,SPLIT - C&G FLORISTRY 06/06/19,Peoples Services Directorate,Education Equipment,F009,
http://opendatacommunities.org/id/london-borough-council/sutton,London Borough of Sutton,06/06/2019,1278083,17.65 , MELBOURNE NURSERY,FOUNDATION IN FLORISTRY 06/06/19,Peoples Services Directorate,Education Equipment,F009,
http://opendatacommunities.org/id/london-borough-council/sutton,London Borough of Sutton,24/06/2019,1278083,20.72 , SAINSBURYS 2006,COOKERY SUPPLIES FOR SPRINGBOARD,Peoples Services Directorate,Education Equipment,F009,
http://opendatacommunities.org/id/london-borough-council/sutton,London Borough of Sutton,18/06/2019,1278083,4.90 , WILKO RETAIL LIMIT,SPRINGBOARD COOKERY INGREDIENTS,Peoples Services Directorate,Education Equipment,F009,
http://opendatacommunities.org/id/london-borough-council/sutton,London Borough of Sutton,17/06/2019,1278083,29.35 , SAINSBURYS 2006,SPRINGBOARD COOKERY INGREDIENTS,Peoples Services Directorate,Education Equipment,F009,
http://opendatacommunities.org/id/london-borough-council/sutton,London Borough of Sutton,12/06/2019,1278083,7.04 , LIDL GB LONDON,SPRINGBOARD COOKERY INGREDIENTS,Peoples Services Directorate,Education Equipment,F009,
http://opendatacommunities.org/id/london-borough-council/sutton,London Borough of Sutton,10/06/2019,1278083,32.24 , SAINSBURYS 2006,SPRINGBOARD COOKERY INGREDIENTS,Peoples Services Directorate,Education Equipment,F009,
http://opendatacommunities.org/id/london-borough-council/sutton,London Borough of Sutton,04/06/2019,1278083,2.40 , WILKO RETAIL LIMIT,SPRINGBOARD COOKERY INGREDIENTS,Peoples Services Directorate,Education Equipment,F009,
http://opendatacommunities.org/id/london-borough-council/sutton,London Borough of Sutton,03/06/2019,1278083,27.10 , SAINSBURYS 2006,SPRINGBOARD COOKERY INGREDIENTS,Peoples Services Directorate,Education Equipment,F009,
http://opendatacommunities.org/id/london-borough-council/sutton,London Borough of Sutton,29/05/2019,1278083,4.00 , WILKO RETAIL LIMIT,FAMILY LEARNING COOKERY INGREDIENTS,Peoples Services Directorate,Education Equipment,F009,
http://opendatacommunities.org/id/london-borough-council/sutton,London Borough of Sutton,29/05/2019,1278083,23.63 , ASDA STORES,FAMILY LEARNING COOKERY INGREDIENTS,Peoples Services Directorate,Education Equipment,F009,
http://opendatacommunities.org/id/london-borough-council/sutton,London Borough of Sutton,30/05/2019,1278083,20.00 , OYSTER AUTO-TOP UP,OYSTER CARD TOP UP,Peoples Services Directorate,Travelling and Subsistence Allowances,A530,
http://opendatacommunities.org/id/london-borough-council/sutton,London Borough of Sutton,06/06/2019,1278083,20.00 , OYSTER AUTO-TOP UP,20.00 - A530 0301 9999 - OYSTER TOP UP 11TH JUNE .PNG,Peoples Services Directorate,Travelling and Subsistence Allowances,A530,
http://opendatacommunities.org/id/london-borough-council/sutton,London Borough of Sutton,05/06/2019,1278083,20.00 , OYSTER AUTO-TOP UP,20.00 - A530 0301 9999 - OYSTER TOP UP,Peoples Services Directorate,Travelling and Subsistence Allowances,A530,
http://opendatacommunities.org/id/london-borough-council/sutton,London Borough of Sutton,05/06/2019,1278083,20.00 , OYSTER AUTO-TOP UP,20.00 - A530 0301 9999 - OYSTER TOP UP,Peoples Services Directorate,Travelling and Subsistence Allowances,A530,
http://opendatacommunities.org/id/london-borough-council/sutton,London Borough of Sutton,05/06/2019,1278083,20.00 , OYSTER AUTO-TOP UP,20.00 - A530 0301 9999 - OYSTER TOP UP,Peoples Services Directorate,Travelling and Subsistence Allowances,A530,
http://opendatacommunities.org/id/london-borough-council/sutton,London Borough of Sutton,03/06/2019,1278083,20.00 , OYSTER AUTO-TOP UP,20.00 - A530 0301 9999 - OYSTER TOP UP 3RD JUNE .PNG,Peoples Services Directorate,Travelling and Subsistence Allowances,A530,
http://opendatacommunities.org/id/london-borough-council/sutton,London Borough of Sutton,02/06/2019,1278083,20.00 , OYSTER AUTO-TOP UP,20.00 - A530 0301 9999 - OYSTER TOP UP,Peoples Services Directorate,Travelling and Subsistence Allowances,A530,
http://opendatacommunities.org/id/london-borough-council/sutton,London Borough of Sutton,09/06/2019,1278083,20.00 , OYSTER AUTO-TOP UP,20.00 - A530 0301 9999 -,Peoples Services Directorate,Travelling and Subsistence Allowances,A530,
http://opendatacommunities.org/id/london-borough-council/sutton,London Borough of Sutton,14/06/2019,1278083,20.00 , OYSTER AUTO-TOP UP,20.00 - A530 0304 9999 - OYSTER,Peoples Services Directorate,Travelling and Subsistence Allowances,A530,
http://opendatacommunities.org/id/london-borough-council/sutton,London Borough of Sutton,12/06/2019,1278083,20.00 , OYSTER AUTO-TOP UP,20.00 - A530 0304 9999 OYSTER,Peoples Services Directorate,Travelling and Subsistence Allowances,A530,
http://opendatacommunities.org/id/london-borough-council/sutton,London Borough of Sutton,12/06/2019,1278083,20.00 , OYSTER AUTO-TOP UP,20.00 - A530 0304 9999 - OYSTER,Peoples Services Directorate,Travelling and Subsistence Allowances,A530,
http://opendatacommunities.org/id/london-borough-council/sutton,London Borough of Sutton,24/06/2019,1278083,5.10 , MAD COFFEE BAR & DELIC,JM ACTIVITY,Peoples Services Directorate,Personal Requisites,F106,
http://opendatacommunities.org/id/london-borough-council/sutton,London Borough of Sutton,20/06/2019,1278083,75.00 , 2MAA010222235 TD E-PMT,RK TRAVEL DOC,Peoples Services Directorate,Personal Requisites,F106,
http://opendatacommunities.org/id/london-borough-council/sutton,London Borough of Sutton,19/06/2019,1278083,48.60 , PRIMARK,KB PRISON,Peoples Services Directorate,Personal Requisites,F106,
http://opendatacommunities.org/id/london-borough-council/sutton,London Borough of Sutton,14/06/2019,1278083,101.67 , ARGOS SELLY OAK,CG SET UP,Peoples Services Directorate,Personal Requisites,F106,
http://opendatacommunities.org/id/london-borough-council/sutton,London Borough of Sutton,13/06/2019,1278083,4.97 , MCDONALDS,MA ACTIVITY,Peoples Services Directorate,Personal Requisites,F106,
http://opendatacommunities.org/id/london-borough-council/sutton,London Borough of Sutton,12/06/2019,1278083,124.99 , ARGOS RETAIL GROUP,CG SET UP,Peoples Services Directorate,Personal Requisites,F106,
http://opendatacommunities.org/id/london-borough-council/sutton,London Borough of Sutton,12/06/2019,1278083,2.65 , MCDONALDS,RA ACTIVITY,Peoples Services Directorate,Personal Requisites,F106,
http://opendatacommunities.org/id/london-borough-council/sutton,London Borough of Sutton,11/06/2019,1278083,4.97 , MCDONALDS,JC ACTIVITY,Peoples Services Directorate,Personal Requisites,F106,
http://opendatacommunities.org/id/london-borough-council/sutton,London Borough of Sutton,19/06/2019,1278083,34.00 , DVLA DRIVER ONLINE,PROVISIONAL LICENSE,Peoples Services Directorate,Personal Requisites,F106,
http://opendatacommunities.org/id/london-borough-council/sutton,London Borough of Sutton,07/06/2019,1278083,94.75 , THE POST OFFICE,JD PP,Peoples Services Directorate,Personal Requisites,F106,
http://opendatacommunities.org/id/london-borough-council/sutton,London Borough of Sutton,05/06/2019,1278083,7.26 , KFC - SUTTON,JC ACTIVITY,Peoples Services Directorate,Personal Requisites,F106,
http://opendatacommunities.org/id/london-borough-council/sutton,London Borough of Sutton,04/06/2019,1278083,15.70 , MOON ON THE HILL,RA ACTIVITY,Peoples Services Directorate,Personal Requisites,F106,
http://opendatacommunities.org/id/london-borough-council/sutton,London Borough of Sutton,04/06/2019,1278083,2.30 , WM MORRISONS STORE,ALLOTMENT PROJ,Peoples Services Directorate,Personal Requisites,F106,
http://opendatacommunities.org/id/london-borough-council/sutton,London Borough of Sutton,04/06/2019,1278083,4.25 , WILKO RETAIL LIMIT,ALLOTMENT PROJ,Peoples Services Directorate,Personal Requisites,F106,
http://opendatacommunities.org/id/london-borough-council/sutton,London Borough of Sutton,25/06/2019,1278083,20.83 , GEN REGISTER OFFICE,BIRTH CERTIFICATES,Peoples Services Directorate,Personal Requisites,F106,
http://opendatacommunities.org/id/london-borough-council/sutton,London Borough of Sutton,06/06/2019,1278083,39.07 , TESCO STORES 5999,REFRESHMENTS,Peoples Services Directorate,Refreshments,F155,
http://opendatacommunities.org/id/london-borough-council/sutton,London Borough of Sutton,30/05/2019,1278083,143.00 , DOUBLETREE,143.00 H202 0304 9999 - KING ACCOMMODATION KINGSTON DOUBLETREE HILTON HOTELS,Peoples Services Directorate,Accommodation - Bed and Breakfast,H202,
http://opendatacommunities.org/id/london-borough-council/sutton,London Borough of Sutton,27/05/2019,1278083,150.00 , HOLIDAY INN KINGSTON S,AWAITING RECEIPT FROM HOTEL FOR EMERGENCY ACCOMMODATION FOR CLIENTS,Peoples Services Directorate,Accommodation - Bed and Breakfast,H202,
http://opendatacommunities.org/id/london-borough-council/sutton,London Borough of Sutton,27/05/2019,1278083,(100.00), HOLIDAY INN KINGSTON S,AWAITING RECEIPT,Peoples Services Directorate,Accommodation - Bed and Breakfast,H202,
http://opendatacommunities.org/id/london-borough-council/sutton,London Borough of Sutton,28/05/2019,1278083,101.05 , TRAVELODGE,CLIENT ACCOMMODATION,Peoples Services Directorate,C.C.A Travel & Subsistance,H212,
http://opendatacommunities.org/id/london-borough-council/sutton,London Borough of Sutton,12/06/2019,1278083,700.00 , WM MORRISONS STORE,MORRISONS VOUCHERS,Peoples Services Directorate,Client Care/Assistance,H301,
http://opendatacommunities.org/id/london-borough-council/sutton,London Borough of Sutton,05/06/2019,1278083,29.00 , BENHILL STORE,JC SET UP,Peoples Services Directorate,Set Up Costs - Children Leaving Care,H336,
http://opendatacommunities.org/id/london-borough-council/sutton,London Borough of Sutton,05/06/2019,1278083,80.00 , FONES FUSION LIMITED,JC SET UP,Peoples Services Directorate,Set Up Costs - Children Leaving Care,H336,
http://opendatacommunities.org/id/london-borough-council/sutton,London Borough of Sutton,14/06/2019,1278083,124.00 , WILKO.COM,124.00 - H336 0304 9999 - WILKO - SETUP FOR YOUNG PERSON .PNG,Peoples Services Directorate,Set Up Costs - Children Leaving Care,H336,
http://opendatacommunities.org/id/london-borough-council/sutton,London Borough of Sutton,29/05/2019,1278083,91.50 , TRAVELODGE,KK HOTEL,Peoples Services Directorate,Personal Requisites,F106,
http://opendatacommunities.org/id/london-borough-council/sutton,London Borough of Sutton,19/06/2019,1278083,20.55 , WILKO RETAIL LIMIT,SS WILK,Peoples Services Directorate,Personal Requisites,F106,
http://opendatacommunities.org/id/london-borough-council/sutton,London Borough of Sutton,19/06/2019,1278083,44.65 , ZURICH INSURANCE,BH TRAVEL INS,Peoples Services Directorate,Personal Requisites,F106,
http://opendatacommunities.org/id/london-borough-council/sutton,London Borough of Sutton,02/06/2019,1278083,20.00 , OYSTER AUTO-TOP UP,20.00 - A530 0310 9999 - OYSTER TOP UP,Peoples Services Directorate,Travelling and Subsistence Allowances,A530,
http://opendatacommunities.org/id/london-borough-council/sutton,London Borough of Sutton,31/05/2019,1278083,"1,272.80 ", TRAVELODGE,1272.80 - H202 0310 9999 - TRAVELODGE .PNG,Peoples Services Directorate,Accommodation - Bed and Breakfast,H202,
http://opendatacommunities.org/id/london-borough-council/sutton,London Borough of Sutton,16/06/2019,1278083,20.00 , OYSTER AUTO-TOP UP,20.00 - A530 ? 9999,Peoples Services Directorate,Travelling and Subsistence Allowances,A530,
http://opendatacommunities.org/id/london-borough-council/sutton,London Borough of Sutton,16/06/2019,1278083,20.00 , OYSTER AUTO-TOP UP,20.00 - A530 ? 9999,Peoples Services Directorate,Travelling and Subsistence Allowances,A530,
http://opendatacommunities.org/id/london-borough-council/sutton,London Borough of Sutton,15/06/2019,1278083,20.00 , OYSTER AUTO-TOP UP,20.00 - A530 ? 9999,Peoples Services Directorate,Travelling and Subsistence Allowances,A530,
http://opendatacommunities.org/id/london-borough-council/sutton,London Borough of Sutton,14/06/2019,1278083,20.00 , OYSTER AUTO-TOP UP,20.00 - A530 ? 9999,Peoples Services Directorate,Travelling and Subsistence Allowances,A530,
http://opendatacommunities.org/id/london-borough-council/sutton,London Borough of Sutton,14/06/2019,1278083,20.00 , OYSTER AUTO-TOP UP,20.00 - A530 ? 9999,Peoples Services Directorate,Travelling and Subsistence Allowances,A530,
http://opendatacommunities.org/id/london-borough-council/sutton,London Borough of Sutton,13/06/2019,1278083,20.00 , OYSTER AUTO-TOP UP,20.00 - A530 0311 9999 - OYSTER 1,Peoples Services Directorate,Travelling and Subsistence Allowances,A530,
http://opendatacommunities.org/id/london-borough-council/sutton,London Borough of Sutton,17/06/2019,1278083,16.67 , WWW.WIGHTLINK.CO.UK,TRAVEL,Peoples Services Directorate,Travelling and Subsistence Allowances,A530,
http://opendatacommunities.org/id/london-borough-council/sutton,London Borough of Sutton,17/06/2019,1278083,16.67 , WWW.WIGHTLINK.CO.UK,TRAVEL,Peoples Services Directorate,Travelling and Subsistence Allowances,A530,
http://opendatacommunities.org/id/london-borough-council/sutton,London Borough of Sutton,24/06/2019,1278083,20.00 , OYSTER AUTO-TOP UP,20.00 - A530 ? 9999 - OYSTER TOP UP,Peoples Services Directorate,Travelling and Subsistence Allowances,A530,
http://opendatacommunities.org/id/london-borough-council/sutton,London Borough of Sutton,20/06/2019,1278083,20.00 , OYSTER AUTO-TOP UP,20.00 - A530 ? 9999 - OYSTER TOP UP,Peoples Services Directorate,Travelling and Subsistence Allowances,A530,
http://opendatacommunities.org/id/london-borough-council/sutton,London Borough of Sutton,19/06/2019,1278083,20.00 , OYSTER AUTO-TOP UP,20.00 - A530 ? 9999,Peoples Services Directorate,Travelling and Subsistence Allowances,A530,
http://opendatacommunities.org/id/london-borough-council/sutton,London Borough of Sutton,12/06/2019,1278083,20.00 , OYSTER AUTO-TOP UP,20.00 - A530 0311 9999 - OYSTER,Peoples Services Directorate,Travelling and Subsistence Allowances,A530,
http://opendatacommunities.org/id/london-borough-council/sutton,London Borough of Sutton,11/06/2019,1278083,20.00 , OYSTER AUTO-TOP UP,20.00 - A530 0311 9999,Peoples Services Directorate,Travelling and Subsistence Allowances,A530,
http://opendatacommunities.org/id/london-borough-council/sutton,London Borough of Sutton,03/06/2019,1278083,20.00 , OYSTER AUTO-TOP UP,20.00 - A530 0311 9999 - OYSTER TOP UP,Peoples Services Directorate,Travelling and Subsistence Allowances,A530,
http://opendatacommunities.org/id/london-borough-council/sutton,London Borough of Sutton,20/06/2019,1278083,51.00 , ENTERPRISE RENT-A-CAR,51.00 - E130 0311 9999 - THORTON HEATH BRANCH ENTERPRISE CLASS A MINI CAR HIRE,Peoples Services Directorate,Staff Travelling Expenses,E130,
http://opendatacommunities.org/id/london-borough-council/sutton,London Borough of Sutton,29/05/2019,1278083,122.49 , MOBICIP ENTERPRISE,$150 - INVOICE_1589_FROM_MOBICIP_LLC.PNG,Peoples Services Directorate,Education Equipment,F009,
http://opendatacommunities.org/id/london-borough-council/sutton,London Borough of Sutton,06/06/2019,1278083,16.00 , WWW.WIGHTLINK.CO.UK,16.00 - F106 0311 9999 - WIGHTLINK FERRIES..PNG,Peoples Services Directorate,Personal Requisites,F106,
http://opendatacommunities.org/id/london-borough-council/sutton,London Borough of Sutton,13/06/2019,1278083,75.00 , GEN REGISTER OFFICE,GRO BIRTH CERTIFICATES,Peoples Services Directorate,Personal Requisites,F106,
http://opendatacommunities.org/id/london-borough-council/sutton,London Borough of Sutton,07/06/2019,1278083,68.25 , WWW.WIGHTLINK.CO.UK,68.25 - F106 0311 9999 - WIGHTLINK FERRIES .PN,Peoples Services Directorate,Personal Requisites,F106,
http://opendatacommunities.org/id/london-borough-council/sutton,London Borough of Sutton,06/06/2019,1278083,93.25 , WWW.WIGHTLINK.CO.UK,93.25 - F106 0311 9999 - WIGHTLINK FERRIES.PNG,Peoples Services Directorate,Personal Requisites,F106,
http://opendatacommunities.org/id/london-borough-council/sutton,London Borough of Sutton,18/06/2019,1278083,18.33 , LBSUTTON,BIRTH CERTIFICATES,Peoples Services Directorate,Personal Requisites,F106,
http://opendatacommunities.org/id/london-borough-council/sutton,London Borough of Sutton,28/05/2019,1278083,199.00 , UKBA11542925962,CLIENT DOCUMENTATION,Peoples Services Directorate,Personal Requisites,F106,
http://opendatacommunities.org/id/london-borough-council/sutton,London Borough of Sutton,07/06/2019,1278083,99.00 , MADAME TUSSAUDS,99.00 - F106 0311 9999 - MADAME TUSSAUDS .PNG,Peoples Services Directorate,Personal Requisites,F106,
http://opendatacommunities.org/id/london-borough-council/sutton,London Borough of Sutton,03/06/2019,1278083,73.25 , THE POST OFFICE,73.25 - F106 0311 9999 - PASSPORT CHECK AND SEND CH.PNG,Peoples Services Directorate,Personal Requisites,F106,
http://opendatacommunities.org/id/london-borough-council/sutton,London Borough of Sutton,03/06/2019,1278083,73.25 , THE POST OFFICE,73.25 - F106 0311 9999 - PASSPORT CHECK AND SEND WA.PNG,Peoples Services Directorate,Personal Requisites,F106,
http://opendatacommunities.org/id/london-borough-council/sutton,London Borough of Sutton,03/06/2019,1278083,73.25 , THE POST OFFICE,73.25 - F106 0311 9999 - PASSPORT CHECK AND SEND TA.PNG,Peoples Services Directorate,Personal Requisites,F106,
http://opendatacommunities.org/id/london-borough-council/sutton,London Borough of Sutton,31/05/2019,1278083,126.60 , OXYGEN FREEJUMPING,126.60 - F106 0311 9999 - OXYGEN FREEJUMPING.PN,Peoples Services Directorate,Personal Requisites,F106,
http://opendatacommunities.org/id/london-borough-council/sutton,London Borough of Sutton,31/05/2019,1278083,55.80 , EMPIRE CINEMAS,55.80 - F106 0311 9999 EMPIRE CINEMAS.PNG,Peoples Services Directorate,Personal Requisites,F106,
http://opendatacommunities.org/id/london-borough-council/sutton,London Borough of Sutton,31/05/2019,1278083,30.00 , SEA LIFE CENTRE,30.00 F106 -0311-9999 - LONDON SEA LIFE.PNG,Peoples Services Directorate,Personal Requisites,F106,
http://opendatacommunities.org/id/london-borough-council/sutton,London Borough of Sutton,31/05/2019,1278083,51.20 , EMPIRE CINEMAS,51.20 - F106 0311 9999 - EMPIRE CINEMA SUTTON.PNG,Peoples Services Directorate,Personal Requisites,F106,
http://opendatacommunities.org/id/london-borough-council/sutton,London Borough of Sutton,29/05/2019,1278083,37.50 , SI5 SPY MISSION,37.50 - F106 0311 9999 - SPY BOOKING FOR YOUNG PERSON.PNG,Peoples Services Directorate,Personal Requisites,F106,
http://opendatacommunities.org/id/london-borough-council/sutton,London Borough of Sutton,20/06/2019,1278083,20.00 , OYSTER AUTO-TOP UP,20.00 - A530 ? 9999 - OYSTER TOP UP 2,Peoples Services Directorate,Travelling and Subsistence Allowances,A530,
http://opendatacommunities.org/id/london-borough-council/sutton,London Borough of Sutton,05/06/2019,1278083,20.00 , OYSTER AUTO-TOP UP,20.00 - A530 0312 9999 - OYSTER TOP UP,Peoples Services Directorate,Travelling and Subsistence Allowances,A530,
http://opendatacommunities.org/id/london-borough-council/sutton,London Borough of Sutton,31/05/2019,1278083,3.37 ,,FEE AS A RESULT OF ...........$150 - INVOICE_1589_FROM_MOBICIP_LLC.PNG,Peoples Services Directorate,Education Equipment,F009,
http://opendatacommunities.org/id/london-borough-council/sutton,London Borough of Sutton,08/06/2019,1278083,57.00 , NATIONAL EXPRESS LIMIT,57.00 - F106 0312 9999 - NATIONAL EXPRESS,Peoples Services Directorate,Personal Requisites,F106,
http://opendatacommunities.org/id/london-borough-council/sutton,London Borough of Sutton,12/06/2019,1278083,22.00 , L B SOUTHWARK - INT,BIRTH CERTIFICATE,Peoples Services Directorate,Personal Requisites,F106,
http://opendatacommunities.org/id/london-borough-council/sutton,London Borough of Sutton,12/06/2019,1278083,22.00 , LBSUTTON,BIRTH CERTIFICATE,Peoples Services Directorate,Personal Requisites,F106,
http://opendatacommunities.org/id/london-borough-council/sutton,London Borough of Sutton,11/06/2019,1278083,73.00 , GEN REGISTER OFFICE,73.00 - F106 0312 9999 - BIRTH CERTIFICATE GRO .PNG,Peoples Services Directorate,Personal Requisites,F106,
http://opendatacommunities.org/id/london-borough-council/sutton,London Borough of Sutton,29/05/2019,1278083,46.00 , WWW.EASTSUSSEXCC.GOV.U,46.00 F106 0312 9999 - BIRTH CERTS.PNG,Peoples Services Directorate,Personal Requisites,F106,
http://opendatacommunities.org/id/london-borough-council/sutton,London Borough of Sutton,04/06/2019,1278083,53.00 , NATIONAL EXPRESS LIMIT,TRAVEL,Peoples Services Directorate,C.C.A Travel & Subsistance,H212,
http://opendatacommunities.org/id/london-borough-council/sutton,London Borough of Sutton,13/06/2019,1278083,"1,382.05 ", TRAVELODGE,EMERGENCY ACCOMMODATION,Peoples Services Directorate,Client Care/Assistance,H301,
http://opendatacommunities.org/id/london-borough-council/sutton,London Borough of Sutton,23/06/2019,1278083,20.00 , OYSTER AUTO-TOP UP,20.00 - A530 0318 9999 - OYSTER TOP UP,Peoples Services Directorate,Travelling and Subsistence Allowances,A530,
http://opendatacommunities.org/id/london-borough-council/sutton,London Borough of Sutton,08/06/2019,1278083,20.00 , OYSTER AUTO-TOP UP,20.00 - A530 0318 9999 - OYSTER TOP UP,Peoples Services Directorate,Travelling and Subsistence Allowances,A530,
http://opendatacommunities.org/id/london-borough-council/sutton,London Borough of Sutton,10/06/2019,1278083,125.99 , AMZNMKTPLACE AMAZON.CO,SPLIT - SANNCE 5-IN-1 8CH 1080N OUTDOOR CAMERA SYSTEM,Peoples Services Directorate,Special,D535,
http://opendatacommunities.org/id/london-borough-council/sutton,London Borough of Sutton,10/06/2019,1278083,23.16 , AMZNMKTPLACE AMAZON.CO,SPLIT - PERSONAL ATTACK ALARM WITH TORCH,Peoples Services Directorate,Special,D535,
http://opendatacommunities.org/id/london-borough-council/sutton,London Borough of Sutton,12/06/2019,1278083,12.50 , AMAZON.CO.UK M66708JT4,SPLIT - KENSINGTON HEIGHT ADJUSTABLE ERGONOMIC GEL KEYBOARD (100%),Peoples Services Directorate,Provisions - General,F150,
http://opendatacommunities.org/id/london-borough-council/sutton,London Borough of Sutton,11/06/2019,1278083,5.70 , AMZNMKTPLACE,SPLIT - PLANTRONICS U10P CABLE (100%),Peoples Services Directorate,Provisions - General,F150,
http://opendatacommunities.org/id/london-borough-council/sutton,London Borough of Sutton,13/06/2019,1278083,20.00 , OYSTER AUTO-TOP UP,20.00 - A530 0321 9999 - OYSTER TOP UP,Peoples Services Directorate,Travelling and Subsistence Allowances,A530,
http://opendatacommunities.org/id/london-borough-council/sutton,London Borough of Sutton,06/06/2019,1278083,20.00 , WWW.WIGHTLINK.CO.UK,20.00 - A530 0321 9999 - OYSTER TOP UP,Peoples Services Directorate,Travelling and Subsistence Allowances,A530,
http://opendatacommunities.org/id/london-borough-council/sutton,London Borough of Sutton,13/06/2019,1278083,79.99 , AMZNMKTPLACE,SPLIT - PLANTRONICS  NOISE CANCELLING OVER HEAD BINAURAL HEADSET,Peoples Services Directorate,Personal Requisites,F106,
http://opendatacommunities.org/id/london-borough-council/sutton,London Borough of Sutton,05/06/2019,1278083,22.00 , LBSUTTON,REQUISITES,Peoples Services Directorate,Personal Requisites,F106,
http://opendatacommunities.org/id/london-borough-council/sutton,London Borough of Sutton,12/06/2019,1278083,10.00 , OYSTER ONLINE,10.00 - A520 0330 9999 - OYSTER TOP UP,Chief Executive's Directorate,Travelling and Subsistence Allowances,A530,
http://opendatacommunities.org/id/london-borough-council/sutton,London Borough of Sutton,13/06/2019,1278083,9.99 , AMZNMKTPLACE,SPLIT - BLACK METAL DESKTOP DOCUMENT BOOK HOLDER WITH 7 ADJUSTABLE POSITIONS,Peoples Services Directorate,Personal Requisites,F106,
http://opendatacommunities.org/id/london-borough-council/sutton,London Borough of Sutton,13/06/2019,1278083,14.25 , AMZNMKTPLACE,SPLIT - MY FIRST CRAYOLA 24 JUMBO CRAYONS (100%),Peoples Services Directorate,Provisions - General,F150,
http://opendatacommunities.org/id/london-borough-council/sutton,London Borough of Sutton,09/06/2019,1278083,13.59 , AMZNMKTPLACE AMAZON.CO,SPLIT - VIDILLO CATCH BAT BALL GAME SET (30.15%),Peoples Services Directorate,Provisions - General,F150,
http://opendatacommunities.org/id/london-borough-council/sutton,London Borough of Sutton,09/06/2019,1278083,8.99 , AMZNMKTPLACE AMAZON.CO,SPLIT - STOBOK 3D CONNECT 4 STRATEGY BOARD GAME (19.94%),Peoples Services Directorate,Provisions - General,F150,
http://opendatacommunities.org/id/london-borough-council/sutton,London Borough of Sutton,09/06/2019,1278083,22.50 , AMZNMKTPLACE AMAZON.CO,"SPLIT - CRAYOLA SUPERTIPS WASHABLE FELT TIP COLOURING PENS, PACK OF 12 (49.91%)",Peoples Services Directorate,Provisions - General,F150,
http://opendatacommunities.org/id/london-borough-council/sutton,London Borough of Sutton,07/06/2019,1278083,4.58 , AMZNMKTPLACE AMAZON.CO,"SPLIT - MATTEL MAT41001M UPC UNO ORIGINAL PLAYING CARD GAME, MULTI (100%)",Peoples Services Directorate,Provisions - General,F150,
http://opendatacommunities.org/id/london-borough-council/sutton,London Borough of Sutton,07/06/2019,1278083,19.84 , AMZNMKTPLACE AMAZON.CO,SPLIT - CHILDRENS PAINT BRUSHES 4 CHUNKY HOGS HAIR BRUSHES SIZE 18 (100%),Peoples Services Directorate,Provisions - General,F150,
http://opendatacommunities.org/id/london-borough-council/sutton,London Borough of Sutton,07/06/2019,1278083,9.52 , AMZNMKTPLACE AMAZON.CO,SPLIT - MY FIRST CRAYOLA 24 JUMBO CRAYONS (100%),Peoples Services Directorate,Provisions - General,F150,
http://opendatacommunities.org/id/london-borough-council/sutton,London Borough of Sutton,07/06/2019,1278083,9.30 , AMZNMKTPLACE AMAZON.CO,SPLIT - CHILDREN PLAY GAME ORANGE RED PLASTIC TENNIS BADMINTON RACKET TOY SET (100%),Peoples Services Directorate,Provisions - General,F150,
http://opendatacommunities.org/id/london-borough-council/sutton,London Borough of Sutton,06/06/2019,1278083,16.34 , AMZNMKTPLACE AMAZON.CO,SPLIT - IKEA KALAS CHILDRENS MUGS X 12 NEW DURABLE (100%),Peoples Services Directorate,Provisions - General,F150,
http://opendatacommunities.org/id/london-borough-council/sutton,London Borough of Sutton,06/06/2019,1278083,13.32 , AMZNMKTPLACE AMAZON.CO,SPLIT - 2 X CHILDREN'S PLAY SAND - 15KG BAG (100%),Peoples Services Directorate,Provisions - General,F150,
http://opendatacommunities.org/id/london-borough-council/sutton,London Borough of Sutton,07/06/2019,1278083,216.00 , APT TRAINING,216 - A520 0361 6049 - E-LEARNING - DBT ESSENTIALS ONLINE DBT ACCREDITATION LEVEL 2,Chief Executive's Directorate,Training - Course Fees,A520,
http://opendatacommunities.org/id/london-borough-council/sutton,London Borough of Sutton,11/06/2019,1278083,40.00 , BILD CHARITY IMPREST A,40.00 - A520 0361 6049 - HOPE CONFERENCE GAIL DEE .PNG,Chief Executive's Directorate,Training - Course Fees,A520,
http://opendatacommunities.org/id/london-borough-council/sutton,London Borough of Sutton,07/06/2019,1278083,216.00 , APT TRAINING,216 - A520 0361 6049 - E-LEARNING - DBT ESSENTIALS,Chief Executive's Directorate,Training - Course Fees,A520,
http://opendatacommunities.org/id/london-borough-council/sutton,London Borough of Sutton,15/06/2019,1278083,16.67 , OYSTER AUTO-TOP UP,TRAVEL,Peoples Services Directorate,Travelling and Subsistence Allowances,A530,
http://opendatacommunities.org/id/london-borough-council/sutton,London Borough of Sutton,07/06/2019,1278083,16.67 , OYSTER AUTO-TOP UP,TRAVEL,Peoples Services Directorate,Travelling and Subsistence Allowances,A530,
http://opendatacommunities.org/id/london-borough-council/sutton,London Borough of Sutton,31/05/2019,1278083,16.67 , OYSTER AUTO-TOP UP,TRAVEL,Peoples Services Directorate,Travelling and Subsistence Allowances,A530,
http://opendatacommunities.org/id/london-borough-council/sutton,London Borough of Sutton,21/06/2019,1278083,20.00 , OYSTER AUTO-TOP UP,20.00 - A530 0383 9999 - OYSTER TOP UP,Peoples Services Directorate,Travelling and Subsistence Allowances,A530,
http://opendatacommunities.org/id/london-borough-council/sutton,London Borough of Sutton,21/06/2019,1278083,20.00 , OYSTER AUTO-TOP UP,20.00 - A530 0383 9999 - OYSTER TOP UP,Peoples Services Directorate,Travelling and Subsistence Allowances,A530,
http://opendatacommunities.org/id/london-borough-council/sutton,London Borough of Sutton,21/06/2019,1278083,20.00 , OYSTER AUTO-TOP UP,20.00 AUTO TOP UP - A530 0383 9999 - GREEN LOCALITY,Peoples Services Directorate,Travelling and Subsistence Allowances,A530,
http://opendatacommunities.org/id/london-borough-council/sutton,London Borough of Sutton,16/06/2019,1278083,20.00 , OYSTER AUTO-TOP UP,20.00 - A530 0383 9999 - 15.06.2019.PNG,Peoples Services Directorate,Travelling and Subsistence Allowances,A530,
http://opendatacommunities.org/id/london-borough-council/sutton,London Borough of Sutton,13/06/2019,1278083,20.00 , OYSTER AUTO-TOP UP,20.00 - A530 0383 9999 - OYSTER TOP UP,Peoples Services Directorate,Travelling and Subsistence Allowances,A530,
http://opendatacommunities.org/id/london-borough-council/sutton,London Borough of Sutton,08/06/2019,1278083,20.00 , OYSTER AUTO-TOP UP,20.00 - A530 0383 9999 -,Peoples Services Directorate,Travelling and Subsistence Allowances,A530,
http://opendatacommunities.org/id/london-borough-council/sutton,London Borough of Sutton,03/06/2019,1278083,"1,952.75 ", TRAVELODGE,ACCOMODATION,Peoples Services Directorate,C.C.A Rent & Utilities,H211,
http://opendatacommunities.org/id/london-borough-council/sutton,London Borough of Sutton,18/06/2019,1278083,484.58 , CONNECTIONFLOORINGLTD,CLIENT EQUIPMENT,Peoples Services Directorate,C.C.A Household Equip & Maint,H214,
http://opendatacommunities.org/id/london-borough-council/sutton,London Borough of Sutton,04/06/2019,1278083,556.50 , TRAVELODGE,EMERGENCY ACCOMMODATION,Peoples Services Directorate,Accommodation - Bed and Breakfast,H202,
http://opendatacommunities.org/id/london-borough-council/sutton,London Borough of Sutton,24/06/2019,1278083,4.79 , AMZNMKTPLACE,SPLIT - TUTTLE COMPACT VIETNAMESE DICTIONARY (COMPACT DICTIONARIES) (67.25%),Peoples Services Directorate,LAC - Education,F269,
http://opendatacommunities.org/id/london-borough-council/sutton,London Borough of Sutton,24/06/2019,1278083,2.33 , AMZNMKTPLACE,BALANCING ENTRY AMOUNT (32.75%),Peoples Services Directorate,LAC - Education,F269,
http://opendatacommunities.org/id/london-borough-council/sutton,London Borough of Sutton,22/06/2019,1278083,5.65 , AMAZON.CO.UK M69X26X34,SPLIT - GRADE 9-1 GCSE ENGLISH TEXT GUIDE  (20.93%),Peoples Services Directorate,LAC - Education,F269,
http://opendatacommunities.org/id/london-borough-council/sutton,London Borough of Sutton,22/06/2019,1278083,10.44 , AMAZON.CO.UK M69X26X34,SPLIT - GCSE SPANISH AQA COMPLETE REVISION & PRACTICE (38.67%),Peoples Services Directorate,LAC - Education,F269,
http://opendatacommunities.org/id/london-borough-council/sutton,London Borough of Sutton,22/06/2019,1278083,5.73 , AMAZON.CO.UK M69X26X34,SPLIT - GRADE 9-1 GCSE ENGLISH SHAKESPEARE TEXT GUIDE - ROMEO & JULIET (21.22%),Peoples Services Directorate,LAC - Education,F269,
http://opendatacommunities.org/id/london-borough-council/sutton,London Borough of Sutton,22/06/2019,1278083,5.18 , AMAZON.CO.UK M69X26X34,SPLIT - GRADE 9-1 GCSE ENGLISH TEXT GUIDE - AN INSPECTOR CALLS  (19.19%),Peoples Services Directorate,LAC - Education,F269,
http://opendatacommunities.org/id/london-borough-council/sutton,London Borough of Sutton,11/06/2019,1278083,20.71 , AMAZON.CO.UK M65II2NN4,SPLIT - MATHS THE BASICS FUNCTIONAL SKILLS EDITION(93.29%),Peoples Services Directorate,LAC - Education,F269,
http://opendatacommunities.org/id/london-borough-council/sutton,London Borough of Sutton,11/06/2019,1278083,1.49 , AMAZON.CO.UK M65II2NN4,BALANCING ENTRY AMOUNT,Peoples Services Directorate,LAC - Education,F269,
http://opendatacommunities.org/id/london-borough-council/sutton,London Borough of Sutton,10/06/2019,1278083,3.98 , AMAZON.CO.UK M61IC1ZC4,SPLIT - TIMES TABLES WORKBOOK AGES 7-11,Peoples Services Directorate,LAC - Education,F269,
http://opendatacommunities.org/id/london-borough-council/sutton,London Borough of Sutton,10/06/2019,1278083,1.50 , AMAZON.CO.UK M61IC1ZC4,BALANCING ENTRY AMOUNT,Peoples Services Directorate,LAC - Education,F269,
http://opendatacommunities.org/id/london-borough-council/sutton,London Borough of Sutton,20/06/2019,1278083,20.00 , OYSTER AUTO-TOP UP,OYSTERCARD TOP UP,"Environment, Housing & Regeneration Directorate",General Office Expenses,F235,
http://opendatacommunities.org/id/london-borough-council/sutton,London Borough of Sutton,02/06/2019,1278083,20.00 , OYSTER AUTO-TOP UP,OYSTERCARD TOP UP,"Environment, Housing & Regeneration Directorate",General Office Expenses,F235,
http://opendatacommunities.org/id/london-borough-council/sutton,London Borough of Sutton,24/06/2019,1278083,150.00 , ROYAL EXETER HOTEL,SPLIT - ACCOMMODATION AT ROYAL EXETER HOTEL,"Environment, Housing & Regeneration Directorate",Hotel Accomodation,A512,
http://opendatacommunities.org/id/london-borough-council/sutton,London Borough of Sutton,10/06/2019,1278083,300.00 , FUTURE CITIES FORUM,CONFERENCE,"Environment, Housing & Regeneration Directorate",Conferences - Fees,A525,
http://opendatacommunities.org/id/london-borough-council/sutton,London Borough of Sutton,25/06/2019,1278083,73.36 , TRAINLINE.COM,TRAIN TICKETS TO ATTEND LGA CONFERENCE 02.07.19 TO 04.07.19,"Environment, Housing & Regeneration Directorate",Travelling and Subsistence Allowances,A530,
http://opendatacommunities.org/id/london-borough-council/sutton,London Borough of Sutton,13/06/2019,1278083,20.00 , OYSTER AUTO-TOP UP,OYSTERCARD TOP UP,"Environment, Housing & Regeneration Directorate",General Office Expenses,F235,
http://opendatacommunities.org/id/london-borough-council/sutton,London Borough of Sutton,29/05/2019,1278083,275.40 , WWW.ETCVENUES.CO.UK,ROOM BOOKING FOR AWAY DAY/LCH CONFERENCE,"Environment, Housing & Regeneration Directorate",Fees - Room Hire,F290,
http://opendatacommunities.org/id/london-borough-council/sutton,London Borough of Sutton,29/05/2019,1278083,122.40 , WWW.ETCVENUES.CO.UK,ROOM BOOKING FOR AWAY DAY/LCH CONFERENCE,"Environment, Housing & Regeneration Directorate",Fees - Room Hire,F290,
http://opendatacommunities.org/id/london-borough-council/sutton,London Borough of Sutton,12/06/2019,1278083,535.41 , AMAZON.CO.UK M656N83H4,CAMERAS FOR BLUE BADGE OPERATIONS,"Environment, Housing & Regeneration Directorate",Other Equipment - Purchase,F015,
http://opendatacommunities.org/id/london-borough-council/sutton,London Borough of Sutton,17/06/2019,1278083,(6.66), AMAZON PRIME,,Chief Executive's Directorate,Repairs to Administrative Equipment,F030,
http://opendatacommunities.org/id/london-borough-council/sutton,London Borough of Sutton,12/06/2019,1278083,6.66 , AMAZON PRIME M619M1JY4,AMAZON PRIME,Chief Executive's Directorate,Repairs to Administrative Equipment,F030,
http://opendatacommunities.org/id/london-borough-council/sutton,London Borough of Sutton,14/06/2019,1278083,33.60 , DUNELM LTD,CURTAIN WIRE AND NET FOR STORAGE CUPBOARD DOORS,Resources Directorate,General Office Expenses,F235,
http://opendatacommunities.org/id/london-borough-council/sutton,London Borough of Sutton,31/05/2019,1278083,25.50 , TESCO STORE 3235,REFRESHMENTS AND SUNDRY ITEMS,Resources Directorate,General Office Expenses,F235,
http://opendatacommunities.org/id/london-borough-council/sutton,London Borough of Sutton,30/05/2019,1278083,8.85 , SAINSBURYS SACAT,HOSPITALITY FRUIT FOR A CONFERENCE HELD AT RUSSETTINGS,Resources Directorate,Hospitality (VAT not Recoverable),F325,
http://opendatacommunities.org/id/london-borough-council/sutton,London Borough of Sutton,30/05/2019,1278083,45.00 , CAFFE NEO,SANDWICHES FOR AWAY DAY HELD BY ANNETTE MADDEN AT RUSSETTINGS,Resources Directorate,Hospitality (VAT not Recoverable),F325,
http://opendatacommunities.org/id/london-borough-council/sutton,London Borough of Sutton,24/06/2019,1278083,30.05 , SAINSBURYS 0038,CC REFRESHMENTS AND MEETING 26/06/ FRUIT,Resources Directorate,Hospitality (VAT not Recoverable),F325,
http://opendatacommunities.org/id/london-borough-council/sutton,London Borough of Sutton,03/06/2019,1278083,8.32 , SPOTIFY P0B2B75B9F,MUSIC FOR CEREMONIES,Resources Directorate,Subscriptions - General,F450,
http://opendatacommunities.org/id/london-borough-council/sutton,London Borough of Sutton,25/06/2019,1278083,69.23 , FLORAL IMAGE SUSSEX,,Resources Directorate,Miscellaneous Expenses,F620,
http://opendatacommunities.org/id/london-borough-council/sutton,London Borough of Sutton,14/06/2019,1278083,37.00 , HOBBYCRAFT,"CHALK BOARD, PENS AND DECORATIONS FOR MARRIAGE ROOM",Resources Directorate,Miscellaneous Expenses,F620,
http://opendatacommunities.org/id/london-borough-council/sutton,London Borough of Sutton,14/06/2019,1278083,56.50 , IKEA LTD 144 CROYDON E,FLOWERS FOR GARDEN ROOM DECORATIONS,Resources Directorate,Miscellaneous Expenses,F620,
http://opendatacommunities.org/id/london-borough-council/sutton,London Borough of Sutton,08/06/2019,1278083,20.00 , OYSTER AUTO-TOP UP,OYSTERCARD TOP UP,"Environment, Housing & Regeneration Directorate",General Office Expenses,F235,
http://opendatacommunities.org/id/london-borough-council/sutton,London Borough of Sutton,22/06/2019,1278083,20.00 , OYSTER AUTO-TOP UP,OYSTERCARD TOP UP,HRA,General Office Expenses,F235,
http://opendatacommunities.org/id/london-borough-council/sutton,London Borough of Sutton,20/06/2019,1278083,20.00 , OYSTER AUTO-TOP UP,OYSTERCARD TOP UP,"Environment, Housing & Regeneration Directorate",General Office Expenses,F235,
http://opendatacommunities.org/id/london-borough-council/sutton,London Borough of Sutton,24/06/2019,1278083,300.00 , ROYAL EXETER HOTEL,SPLIT - ACCOMMODATION AT ROYAL EXETER HOTEL,Chief Executive's Directorate,Hotel Accomodation,A512,
http://opendatacommunities.org/id/london-borough-council/sutton,London Borough of Sutton,21/06/2019,1278083,20.00 , OYSTER AUTO-TOP UP,TEAM OYSTER,Chief Executive's Directorate,Travelling and Subsistence Allowances,A530,
http://opendatacommunities.org/id/london-borough-council/sutton,London Borough of Sutton,21/06/2019,1278083,20.00 , OYSTER AUTO-TOP UP,TEAM OYSTER,Chief Executive's Directorate,Travelling and Subsistence Allowances,A530,
http://opendatacommunities.org/id/london-borough-council/sutton,London Borough of Sutton,01/06/2019,1278083,20.00 , OYSTER AUTO-TOP UP,TEAM OYSTER,Chief Executive's Directorate,Travelling and Subsistence Allowances,A530,
http://opendatacommunities.org/id/london-borough-council/sutton,London Borough of Sutton,25/06/2019,1278083,73.36 , TRAINLINE.COM,TRAIN TICKETS TO ATTEND THE LGA CONFERENCE 02.07.19 - 04.07.19,Chief Executive's Directorate,Travelling and Subsistence Allowances,A530,
http://opendatacommunities.org/id/london-borough-council/sutton,London Borough of Sutton,17/06/2019,1278083,3.60 ,,WEB HOSTING,Chief Executive's Directorate,Fees - Computer Software,F384,
http://opendatacommunities.org/id/london-borough-council/sutton,London Borough of Sutton,14/06/2019,1278083,131.06 , MAILCHIMP    MONTHLY,WEB HOSTING,Chief Executive's Directorate,Fees - Computer Software,F384,
http://opendatacommunities.org/id/london-borough-council/sutton,London Borough of Sutton,30/05/2019,1278083,20.00 , OYSTER AUTO-TOP UP,20.00 A530 4114 9999 - OYSTER TOP UP 30TH MAY.PNG,Resources Directorate,Travelling and Subsistence Allowances,A530,
http://opendatacommunities.org/id/london-borough-council/sutton,London Borough of Sutton,21/06/2019,1278083,15.00 , OYSTER ONLINE,15.00 - A530 4114 9999 - OYSTER CARD 2,Resources Directorate,Travelling and Subsistence Allowances,A530,
http://opendatacommunities.org/id/london-borough-council/sutton,London Borough of Sutton,19/06/2019,1278083,59.50 , AMZNMKTPLACE AMAZON.CO,SPLIT - LARGE DRYWIPE MAGNETIC WHITEBOARD - HOME & OFFICE  (100%),Resources Directorate,Provisions - General,F150,
http://opendatacommunities.org/id/london-borough-council/sutton,London Borough of Sutton,06/06/2019,1278083,"2,000.00 ", WM MORRISONS HO CREDIT,2000 - H301 4114 9999 - MORRISONS VOUCHERS RECEIPT..PNG,Resources Directorate,Miscellaneous Expenses,F620,
http://opendatacommunities.org/id/london-borough-council/sutton,London Borough of Sutton,12/06/2019,1278083,6.66 , AMAZON PRIME M64KW8344,AMAZON PRIME MEMBERSHIP,Chief Executive's Directorate,General Office Expenses,F235,
http://opendatacommunities.org/id/london-borough-council/sutton,London Borough of Sutton,04/06/2019,1278083,19.16 , AMAZON.CO.UK M62BS1C34,AWS BUTTON DEVICERS,Chief Executive's Directorate,General Office Expenses,F235,
http://opendatacommunities.org/id/london-borough-council/sutton,London Borough of Sutton,18/06/2019,1278083,21.00 , WWW.DIRECT-FUNDRAISING,CHARITY BUCKET LABELS,Resources Directorate,Materials - General,F100,
http://opendatacommunities.org/id/london-borough-council/sutton,London Borough of Sutton,07/06/2019,1278083,38.00 , DAWSONS,PLAQUE FOR MAYORAL PORTRAIT AND 2 SETS OF KEYS,Resources Directorate,Materials - General,F100,
http://opendatacommunities.org/id/london-borough-council/sutton,London Borough of Sutton,28/05/2019,1278083,(180.00), MAJESTIC WINE,REFUND FOR DEPOSIT OF WINE GLASSES/WINE COOLERS ANNUAL MAYOR MAKING MAY 2019,Resources Directorate,Hospitality (VAT not Recoverable),F325,
http://opendatacommunities.org/id/london-borough-council/sutton,London Borough of Sutton,24/06/2019,1278083,165.00 , PAYPAL  CRESTREGALI,REPLICA CHAINS OF OFFICE,Resources Directorate,Mayor's Allowance,F407,
http://opendatacommunities.org/id/london-borough-council/sutton,London Borough of Sutton,24/06/2019,1278083,375.00 , ROYAL EXETER HOTEL,SPLIT - ACCOMMODATION AT ROYAL EXETER HOTEL,Resources Directorate,Hotel Accomodation,A512,
http://opendatacommunities.org/id/london-borough-council/sutton,London Borough of Sutton,24/06/2019,1278083,70.51 , TRAINLINE.COM,TRAIN TICKETS TO BOURNEMOUTH TO ATTEND LGA CONFERENCE,Resources Directorate,Members Expenses - Travel and Subsistence,F401,
http://opendatacommunities.org/id/london-borough-council/sutton,London Borough of Sutton,14/06/2019,1278083,249.95 , EB  SEMINAR AN INTRODU,LGIU AN INTRODUCTION TO LOCAL GOVERNMENT FINANCE,Resources Directorate,Members Expenses - Other,F402,
http://opendatacommunities.org/id/london-borough-council/sutton,London Borough of Sutton,04/06/2019,1278083,14.18 , WM MORRISONS STORE,FOOD AND REFRESHMENTS FOR CICC EVENT,Chief Executive's Directorate,Refreshments,F155,
http://opendatacommunities.org/id/london-borough-council/sutton,London Borough of Sutton,13/06/2019,1278083,167.76 , 123-REG.CO.UK,INNOVATE IOT - NEEDS CODING TO Y133 M810 9999,Chief Executive's Directorate,Corporate Publicity,F356,
http://opendatacommunities.org/id/london-borough-council/sutton,London Borough of Sutton,06/06/2019,1278083,117.35 , GOOGLE  ADS8517410550,BALANCING ENTRY AMOUNT,Chief Executive's Directorate,Corporate Publicity,F356,
http://opendatacommunities.org/id/london-borough-council/sutton,London Borough of Sutton,05/06/2019,1278083,166.67 , FACEBK KPSGKLW9L2,149.31 DOMESTIC ABUSE TO RECHARGE TO TRANSFORMATION AND 50.69 TO COMMS,Chief Executive's Directorate,Corporate Publicity,F356,
http://opendatacommunities.org/id/london-borough-council/sutton,London Borough of Sutton,31/05/2019,1278083,99.32 , FACEBK XEEXWMNAL2,"FACEBOOK RECEIPTS, 21.93 SUTTON IN BLOOM, 20.22 SUTTONS FUTURE AND BALANCE DA",Chief Executive's Directorate,Corporate Publicity,F356,
http://opendatacommunities.org/id/london-borough-council/sutton,London Borough of Sutton,30/05/2019,1278083,299.40 , SITEGROUND HOSTING,SUTTON PLAN SITE HOSTING FEES,Chief Executive's Directorate,Corporate Publicity,F356,
http://opendatacommunities.org/id/london-borough-council/sutton,London Borough of Sutton,25/06/2019,1278083,108.92 , TRAINLINE,TRAIN TICKETS CIPFA AND LGA CONFERENCES ON 09.07.19 AND 11.07.19,Resources Directorate,Conferences - Fees,A525,
http://opendatacommunities.org/id/london-borough-council/sutton,London Borough of Sutton,24/06/2019,1278083,409.98 , WWW.ARGOS.CO.UK,CRISIS LOAN AND GRANT SCHEME PURCHASE,Resources Directorate,Grants,F473,
http://opendatacommunities.org/id/london-borough-council/sutton,London Borough of Sutton,17/06/2019,1278083,155.95 , WWW.ARGOS.CO.UK,CRISIS LOAN AND GRANT SCHEME PURCHASE,Resources Directorate,Grants,F473,
http://opendatacommunities.org/id/london-borough-council/sutton,London Borough of Sutton,08/06/2019,1278083,40.00 , OYSTER AUTO-TOP UP,REVENUES STAFF TRAVEL,Resources Directorate,Travelling and Subsistence Allowances,A530,
http://opendatacommunities.org/id/london-borough-council/sutton,London Borough of Sutton,30/05/2019,1278083,40.00 , OYSTER AUTO-TOP UP,REVENUES STAFF TRAVEL,Resources Directorate,Travelling and Subsistence Allowances,A530,
http://opendatacommunities.org/id/london-borough-council/sutton,London Borough of Sutton,11/06/2019,1278083,50.00 , WWW.GOV.UK,PROBATE CERTIFICATES X 5,Resources Directorate,General Office Expenses,F235,
http://opendatacommunities.org/id/london-borough-council/sutton,London Borough of Sutton,31/05/2019,1278083,840.00 , WWW.CII.CO.UK,CLL MEMBERSHIP,Resources Directorate,Training - Course Fees,A520,
http://opendatacommunities.org/id/london-borough-council/sutton,London Borough of Sutton,11/06/2019,1278083,150.00 , VIRGIN TRAINS,TRAVEL,Resources Directorate,Conferences - Travel and Subsistence,A526,
http://opendatacommunities.org/id/london-borough-council/sutton,London Borough of Sutton,30/05/2019,1278083,16.67 , CURRYS SUPERSTORE,CLIENT HOUSEHOLD EQUIPMENT,Peoples Services Directorate,C.C.A Household Equip & Maint,H214,
http://opendatacommunities.org/id/london-borough-council/sutton,London Borough of Sutton,29/05/2019,1278083,579.00 , CURRYS ONLINE,579 - H214 6403 9999 - CURRY'S PC WORLD,Peoples Services Directorate,C.C.A Household Equip & Maint,H214,
http://opendatacommunities.org/id/london-borough-council/sutton,London Borough of Sutton,25/06/2019,1278083,33.97 , PAYPAL  GOOGLEADDON,IT PACKAGE,Peoples Services Directorate,Administrative Equipment,F001,
http://opendatacommunities.org/id/london-borough-council/sutton,London Borough of Sutton,13/06/2019,1278083,20.00 , OYSTER ONLINE,OYSTER TOP UP,Peoples Services Directorate,Travelling and Subsistence Allowances,A530,
http://opendatacommunities.org/id/london-borough-council/sutton,London Borough of Sutton,13/06/2019,1278083,50.00 , OYSTER ONLINE,OYSTER TOP UP,Peoples Services Directorate,Travelling and Subsistence Allowances,A530,
